bitfinex/quotes_BTCUSD_20241110
["timestamp","ask_amount","ask_price","bid_price","bid_amount"]
[1731260417902,0.18704758,80149.0,80129.0,0.1]
[1731260418105,0.18704758,80149.0,80127.0,0.001682]
[1731260418106,0.18704758,80140.0,80139.0,0.1]
[1731260418453,0.13094221,80140.0,80139.0,0.47435]
[1731260418651,0.18704758,80159.0,80139.0,0.63605552]
[1731260418960,0.18704758,80150.0,80147.0,0.1]
[1731260419261,0.12594221,80149.0,80148.0,0.47431]
[1731260419795,0.18704758,80159.0,80148.0,0.63597576]
[1731260420015,0.12594221,80149.0,80148.0,0.47431]
[1731260421391,0.12094221,80149.0,80148.0,0.63597576]
[1731260421772,0.12094221,80149.0,80148.0,0.37431]
[1731260423928,0.12094221,80149.0,80148.0,0.375992]
[1731260424643,0.12594221,80149.0,80148.0,0.375992]
[1731260426018,0.12594221,80149.0,80148.0,0.500761]
[1731260427833,0.12594221,80149.0,80148.0,0.6631562]
[1731260428028,0.12594221,80149.0,80148.0,0.500761]
[1731260428613,0.000839,80179.0,80148.0,0.375992]
[1731260428764,0.18704758,80159.0,80156.0,0.16247533]
[1731260428960,0.12594221,80158.0,80157.0,0.37427]
[1731260429781,0.12594221,80158.0,80157.0,0.40427]
[1731260429999,0.005,80159.0,80158.0,0.1265]
[1731260430215,0.18704758,80175.0,80159.0,0.1]
[1731260430515,0.18704758,80164.0,80161.0,0.1]
[1731260430878,0.31298979,80163.0,80162.0,0.36924]
[1731260431121,0.12594221,80163.0,80162.0,0.36924]
[1731260431941,0.12594221,80163.0,80151.0,0.16255309]
[1731260432069,0.12594221,80163.0,80140.0,0.0813]
[1731260432070,0.124721,80179.0,80149.0,0.18704758]
[1731260432439,0.12594221,80151.0,80111.0,0.006678]
[1731260432651,0.12594221,80151.0,80113.0,0.005]
[1731260432839,0.12594221,80151.0,80112.0,0.37994221]
[1731260432840,0.18704758,80147.0,80112.0,0.37994221]
[1731260433078,0.18704758,80138.0,80113.0,0.005]
[1731260433489,0.18704758,80138.0,80119.0,0.002]
[1731260433712,0.18704758,80138.0,80121.0,0.1]
[1731260433922,0.18704758,80138.0,80122.0,0.12594221]
[1731260434072,0.18704758,80138.0,80123.0,0.1]
[1731260434272,0.18704758,80138.0,80124.0,0.37442]
[1731260434477,0.18704758,80138.0,80125.0,0.1]
[1731260434884,0.31298979,80147.0,80127.0,0.1]
[1731260435089,0.18704758,80147.0,80128.0,0.12594221]
[1731260435257,0.1820293,80146.0,80129.0,0.1]
[1731260435462,0.1820293,80146.0,80131.0,0.1]
[1731260435782,0.18704758,80155.0,80133.0,0.1]
[1731260435982,0.18704758,80155.0,80134.0,0.37437]
[1731260435983,0.18704758,80145.0,80134.0,0.37437]
[1731260436194,0.18704758,80155.0,80135.0,0.1]
[1731260436400,0.18704758,80137.0,80135.0,0.1]
[1731260436625,0.18704758,80164.0,80137.0,0.1]
[1731260436946,0.18704758,80164.0,80127.0,0.0813]
[1731260436947,0.000842,80151.0,80146.0,0.16263284]
[1731260437109,0.000842,80151.0,80148.0,0.1]
[1731260437516,0.000842,80151.0,80150.0,0.1]
[1731260437856,0.000842,80151.0,80150.0,0.3743]
[1731260438076,0.000842,80151.0,80150.0,0.4743]
[1731260440642,0.000842,80151.0,80150.0,0.3743]
[1731260440849,0.12678421,80151.0,80150.0,0.3743]
[1731260442425,0.000842,80151.0,80150.0,0.3743]
[1731260442808,0.12678421,80151.0,80150.0,0.3743]
[1731260445329,0.12678421,80151.0,80111.0,0.001678]
[1731260445531,0.12594221,80137.0,80129.0,0.18704758]
[1731260445736,0.12594221,80136.0,80111.0,0.001678]
[1731260445975,0.12594221,80136.0,80113.0,0.18704758]
[1731260446309,0.12594221,80136.0,80111.0,0.001678]
[1731260446310,0.18704758,80134.0,80112.0,0.37442]
[1731260446568,0.12594221,80133.0,80114.0,0.37447]
[1731260446773,0.18704758,80134.0,80114.0,0.37447]
[1731260446774,0.12594221,80134.0,80114.0,0.37447]
[1731260446973,0.31298979,80132.0,80115.0,0.1]
[1731260447356,0.31298979,80132.0,80117.0,0.1]
[1731260447810,0.31298979,80132.0,80119.0,0.1]
[1731260448226,0.31298979,80132.0,80121.0,0.1]
[1731260448418,0.31298979,80132.0,80122.0,0.00249553]
[1731260448592,0.31298979,80132.0,80122.0,0.37692553]
[1731260448804,0.31298979,80132.0,80122.0,0.37443]
[1731260449406,0.12594221,80132.0,80122.0,0.37443]
[1731260449613,0.12094221,80132.0,80122.0,0.37443]
[1731260450013,0.12094221,80132.0,80123.0,0.0006638]
[1731260450218,0.01301698,80146.0,80123.0,0.0006638]
[1731260450378,0.18704758,80139.0,80127.0,0.002]
[1731260450584,0.18704758,80138.0,80130.0,0.1627681]
[1731260450887,0.18704758,80138.0,80131.0,0.47439]
[1731260451093,0.18704758,80146.0,80131.0,0.47439]
[1731260452698,0.18704758,80146.0,80131.0,0.6371581]
[1731260452912,0.18704758,80146.0,80131.0,0.47439]
[1731260453110,0.12594221,80145.0,80131.0,0.47439]
[1731260453669,0.12594221,80145.0,80131.0,0.37439]
[1731260454087,0.12594221,80142.0,80131.0,0.37439]
[1731260454473,0.18704758,80146.0,80131.0,0.37439]
[1731260454474,0.12594221,80138.0,80131.0,0.37439]
[1731260456177,0.18704758,80136.0,80131.0,0.37439]
[1731260456373,0.12594221,80135.0,80131.0,0.37439]
[1731260456776,0.12568039,80135.0,80131.0,0.37439]
[1731260457412,0.12568039,80135.0,80132.0,0.00133053]
[1731260457578,0.12568039,80135.0,80131.0,0.37439]
[1731260457937,0.12568039,80135.0,80133.0,0.37438]
[1731260463447,0.18704758,80143.0,80133.0,0.37438]
[1731260463448,0.31298979,80134.0,80133.0,0.37438]
[1731260463851,0.12594221,80134.0,80133.0,0.37438]
[1731260465100,0.1586193,80134.0,80133.0,0.37438]
[1731260465299,0.1586193,80134.0,80097.0,0.16444846]
[1731260465300,0.023,80132.0,80097.0,0.001412]
[1731260465481,0.147795,80132.0,80115.0,0.18704758]
[1731260465729,0.18704758,80129.0,80097.0,0.001412]
[1731260466057,0.18704758,80129.0,80103.0,0.18704758]
[1731260466058,0.124802,80127.0,80103.0,0.18704758]
[1731260466260,0.023,80132.0,80105.0,0.18704758]
[1731260466490,0.12594221,80109.0,80106.0,0.3745]
[1731260466695,0.12594221,80109.0,80106.0,0.38831232]
[1731260467397,0.12594221,80109.0,80107.0,0.1]
[1731260467550,0.31298979,80108.0,80106.0,0.3745]
[1731260467751,0.31298979,80108.0,80097.0,0.1]
[1731260467752,0.18704758,80116.0,80108.0,0.06150021]
[1731260468424,0.12594221,80109.0,80108.0,0.06150021]
[1731260470710,0.18704758,80117.0,80108.0,0.06150021]
[1731260470918,0.12594221,80116.0,80108.0,0.06150021]
[1731260471123,0.12594221,80113.0,80108.0,0.06150021]
[1731260471930,0.12594221,80113.0,80109.0,0.00249581]
[1731260472149,0.18704758,80111.0,80089.0,0.1]
[1731260472374,0.005,80107.0,80089.0,0.1]
[1731260472556,0.12594221,80106.0,80090.0,0.37453]
[1731260472761,0.12594221,80106.0,80090.0,0.37353]
[1731260472943,0.18704758,80105.0,80090.0,0.37153]
[1731260473162,0.12594221,80104.0,80090.0,0.37153]
[1731260473661,0.18704758,80094.0,80090.0,0.37153]
[1731260473868,0.12594221,80093.0,80090.0,0.37153]
[1731260474102,0.005,80091.0,80090.0,0.37153]
[1731260474358,0.005,80091.0,80081.0,0.001412]
[1731260474359,0.005,80082.0,80081.0,0.001412]
[1731260474572,0.12594221,80082.0,80081.0,0.001412]
[1731260475717,0.12594221,80082.0,80081.0,0.376032]
[1731260475934,0.12594221,80082.0,80081.0,0.366032]
[1731260480085,0.02626222,80098.0,80081.0,0.366032]
[1731260480086,0.03126222,80098.0,80081.0,0.366032]
[1731260480297,0.18704758,80093.0,80081.0,0.366032]
[1731260480432,0.12594221,80092.0,80081.0,0.366032]
[1731260480630,0.12594221,80091.0,80081.0,0.366032]
[1731260481268,0.12594221,80090.0,80081.0,0.366032]
[1731260481463,0.12594221,80089.0,80081.0,0.366032]
[1731260482873,0.21310881,80105.0,80081.0,0.366032]
[1731260483079,0.21310881,80105.0,80085.0,0.1]
[1731260483080,0.18704758,80096.0,80085.0,0.1]
[1731260483284,0.12594221,80095.0,80085.0,0.1]
[1731260483494,0.12594221,80095.0,80087.0,0.16253898]
[1731260483693,0.12594221,80095.0,80086.0,0.54572898]
[1731260484108,0.18704758,80094.0,80088.0,0.38318]
[1731260484405,0.12594221,80093.0,80088.0,0.38318]
[1731260485217,0.000842,80089.0,80088.0,0.38318]
[1731260486462,0.000842,80089.0,80088.0,0.48318]
[1731260486689,0.000842,80089.0,80088.0,0.60701922]
[1731260486867,0.000842,80089.0,80088.0,0.48318]
[1731260488441,0.000842,80089.0,80088.0,0.60709343]
[1731260488641,0.000842,80089.0,80088.0,0.48318]
[1731260488888,0.000842,80089.0,80088.0,0.38318]
[1731260488889,0.12678421,80089.0,80088.0,0.38318]
[1731260491404,0.000842,80089.0,80088.0,0.48318]
[1731260492157,0.000842,80089.0,80088.0,0.60719677]
[1731260492557,0.000842,80089.0,80088.0,0.53278]
[1731260492783,0.19204758,80144.0,80095.0,0.005]
[1731260493114,0.18704758,80108.0,80107.0,0.1]
[1731260493340,0.16724758,80108.0,80105.0,0.1]
[1731260493560,0.005,80142.0,80108.0,0.1]
[1731260493762,0.005,80142.0,80110.0,0.1]
[1731260493942,0.005,80138.0,80110.0,0.1]
[1731260494285,0.18704758,80144.0,80109.0,0.38308]
[1731260494286,0.005,80140.0,80112.0,0.1]
[1731260494693,0.005,80140.0,80114.0,0.1]
[1731260494910,0.005,80140.0,80113.0,0.38306]
[1731260494911,0.18704758,80144.0,80116.0,0.1]
[1731260495099,0.18704758,80144.0,80115.0,0.1296]
[1731260495100,0.18704758,80134.0,80127.0,0.005]
[1731260495257,0.18704758,80134.0,80128.0,0.12388438]
[1731260495460,0.18704758,80134.0,80130.0,0.1]
[1731260495947,0.18704758,80134.0,80132.0,0.1]
[1731260496109,0.000842,80135.0,80132.0,0.1]
[1731260496265,0.000842,80135.0,80134.0,0.09]
[1731260496821,0.000842,80135.0,80134.0,0.47296]
[1731260499106,0.12678421,80135.0,80134.0,0.47296]
[1731260499355,0.12678421,80135.0,80134.0,0.38296]
[1731260499556,0.12178421,80135.0,80134.0,0.38296]
[1731260499761,0.12178421,80135.0,80134.0,0.37296]
[1731260501555,0.12178421,80135.0,80134.0,0.37275185]
[1731260501876,0.09878421,80135.0,80134.0,0.37275185]
[1731260503154,0.000841,80150.0,80134.0,0.37275185]
[1731260503378,0.18704758,80142.0,80134.0,0.37275185]
[1731260503577,0.12594221,80141.0,80134.0,0.37275185]
[1731260503771,0.12594221,80141.0,80134.0,0.36775185]
[1731260504509,0.12594221,80141.0,80119.0,0.11732788]
[1731260504723,0.12594221,80141.0,80135.0,0.37436]
[1731260504724,0.18704758,80139.0,80135.0,0.37436]
[1731260504930,0.12594221,80138.0,80135.0,0.37436]
[1731260505556,0.000841,80150.0,80135.0,0.37436]
[1731260505777,0.18704758,80141.0,80135.0,0.17436]
[1731260505998,0.12594221,80149.0,80135.0,0.17436]
[1731260506722,0.12594221,80149.0,80136.0,0.1]
[1731260507027,0.18704758,80148.0,80138.0,0.1]
[1731260507171,0.18704758,80148.0,80139.0,0.57435]
[1731260507376,0.12594221,80147.0,80140.0,0.1]
[1731260507621,0.12594221,80147.0,80141.0,0.57434]
[1731260507826,0.12594221,80147.0,80142.0,0.1]
[1731260508287,0.12594221,80147.0,80143.0,0.57433]
[1731260508465,0.000841,80150.0,80143.0,0.57433]
[1731260508607,0.000841,80150.0,80145.0,0.1]
[1731260508806,0.18704758,80149.0,80145.0,0.1]
[1731260509015,0.18704758,80149.0,80147.0,0.1]
[1731260509233,0.000841,80150.0,80148.0,0.44836779]
[1731260509432,0.12678321,80150.0,80149.0,0.1]
[1731260510344,0.12678321,80150.0,80149.0,0.80024]
[1731260511309,0.13138778,80163.0,80149.0,0.80024]
[1731260511528,0.12594221,80162.0,80149.0,0.80024]
[1731260513053,0.12594221,80162.0,80151.0,0.1]
[1731260513054,0.18704758,80161.0,80151.0,0.1]
[1731260513391,0.18704758,80161.0,80153.0,0.1]
[1731260513858,0.18704758,80161.0,80155.0,0.1]
[1731260514150,0.18704758,80161.0,80156.0,0.70021]
[1731260514578,0.12594221,80162.0,80156.0,0.70021]
[1731260514921,0.000707,80163.0,80157.0,0.1]
[1731260515139,0.000707,80163.0,80158.0,0.7002]
[1731260515343,0.000707,80163.0,80159.0,0.1]
[1731260515563,0.12664921,80163.0,80159.0,0.1]
[1731260515775,0.12664921,80163.0,80144.0,0.29178131]
[1731260515776,0.12664921,80163.0,80161.0,0.1]
[1731260515993,0.12664921,80163.0,80162.0,0.80018]
[1731260516820,0.000707,80163.0,80162.0,0.80018]
[1731260520026,0.12664921,80163.0,80162.0,0.80018]
[1731260520648,0.10664921,80163.0,80162.0,0.70018]
[1731260521220,0.10749121,80163.0,80162.0,0.70018]
[1731260522678,0.000842,80163.0,80162.0,0.70018]
[1731260523207,0.000842,80163.0,80162.0,0.80018]
[1731260523426,0.000842,80163.0,80162.0,0.96187638]
[1731260523657,0.000842,80163.0,80162.0,0.80018]
[1731260524816,0.000842,80163.0,80162.0,0.79995298]
[1731260525404,0.000842,80163.0,80162.0,0.89995298]
[1731260526000,0.000707,80170.0,80163.0,0.1]
[1731260526001,0.477842,80169.0,80163.0,0.1]
[1731260526197,0.477842,80169.0,80164.0,0.16172571]
[1731260526198,0.18704758,80168.0,80164.0,0.16172571]
[1731260526399,0.477842,80169.0,80165.0,0.096463]
[1731260526649,0.477842,80169.0,80166.0,0.70039]
[1731260527023,0.12594221,80168.0,80166.0,0.70039]
[1731260532136,0.12594221,80168.0,80166.0,0.8623331]
[1731260532342,0.12594221,80168.0,80166.0,0.70039]
[1731260532980,0.12594221,80168.0,80167.0,0.16221223]
[1731260533496,0.12594221,80168.0,80167.0,0.70039]
[1731260534288,0.18704758,80168.0,80167.0,0.70039]
[1731260534499,0.37927991,80168.0,80167.0,0.65851317]
[1731260534650,0.12678321,80168.0,80167.0,0.65851317]
[1731260534907,0.13178321,80168.0,80167.0,0.65851317]
[1731260535102,0.12678321,80168.0,80167.0,0.65851317]
[1731260535738,0.12678321,80168.0,80167.0,0.82085687]
[1731260536349,0.12678321,80168.0,80167.0,0.65851317]
[1731260537044,0.12678321,80168.0,80167.0,0.82120121]
[1731260537673,0.12594221,80168.0,80167.0,0.65851317]
[1731260540832,0.18704758,80179.0,80167.0,0.65851317]
[1731260540998,0.12594221,80178.0,80167.0,0.65851317]
[1731260541231,0.12594221,80178.0,80167.0,0.82148559]
[1731260541427,0.12594221,80178.0,80167.0,0.65851317]
[1731260542269,0.12594221,80178.0,80167.0,0.60851317]
[1731260542627,0.12594221,80178.0,80170.0,0.18704758]
[1731260542901,0.12594221,80178.0,80167.0,0.77152534]
[1731260543032,0.12594221,80178.0,80169.0,0.16301217]
[1731260543369,0.12594221,80178.0,80170.0,0.79225]
[1731260544755,0.12094221,80178.0,80170.0,0.79225]
[1731260545163,0.12094221,80178.0,80170.0,0.95526217]
[1731260545376,0.12094221,80178.0,80170.0,0.79225]
[1731260546009,2.94737979,80180.0,80179.0,0.007]
[1731260546213,0.43159509,80180.0,80179.0,0.26055509]
[1731260546425,0.18704758,80193.0,80188.0,0.017]
[1731260546743,0.18704758,80193.0,80188.0,1.05272509]
[1731260546901,0.18704758,80209.0,80188.0,1.05272509]
[1731260547066,0.18704758,80209.0,80188.0,1.07380243]
[1731260547697,0.14202144,80194.0,80193.0,0.017]
[1731260547920,0.18704758,80209.0,80196.0,0.007]
[1731260548119,0.18704758,80209.0,80196.0,0.23924865]
[1731260548370,0.18704758,80209.0,80196.0,0.92307221]
[1731260548563,0.00661381,80200.0,80198.0,0.005]
[1731260549344,0.00661381,80200.0,80199.0,0.79212]
[1731260550096,0.13255602,80200.0,80199.0,0.79212]
[1731260550273,0.17805602,80200.0,80199.0,0.79212]
[1731260550563,0.25555602,80200.0,80199.0,0.77095177]
[1731260550972,0.25555602,80200.0,80167.0,0.001682]
[1731260551126,0.12594221,80194.0,80185.0,0.18704758]
[1731260551342,0.12594221,80192.0,80167.0,0.001682]
[1731260551759,0.12594221,80192.0,80173.0,0.005]
[1731260551962,0.12594221,80192.0,80177.0,0.005]
[1731260552773,0.18704758,80198.0,80177.0,0.005]
[1731260552940,0.12594221,80197.0,80177.0,0.005]
[1731260553137,0.00661381,80200.0,80189.0,0.005]
[1731260553339,0.00661381,80200.0,80199.0,0.005]
[1731260554275,0.00661381,80200.0,80193.0,0.005]
[1731260554874,0.00661381,80200.0,80176.0,0.1]
[1731260554875,0.31298979,80199.0,80188.0,0.005]
[1731260555086,0.12594221,80199.0,80193.0,0.005]
[1731260555293,0.12594221,80199.0,80186.0,0.005]
[1731260555509,0.12594221,80199.0,80193.0,0.005]
[1731260555912,0.00661381,80200.0,80193.0,0.005]
[1731260556334,0.00661381,80200.0,80198.0,0.005]
[1731260556535,0.00661381,80200.0,80199.0,0.005]
[1731260557140,6.49467987,80204.0,80202.0,0.005]
[1731260558176,6.49467987,80204.0,80201.0,0.005]
[1731260558579,6.49467987,80204.0,80199.0,0.006682]
[1731260558790,6.49467987,80204.0,80201.0,0.005]
[1731260559815,6.62062208,80204.0,80199.0,0.001682]
[1731260560033,0.12594221,80203.0,80199.0,0.001682]
[1731260560925,0.12594221,80203.0,80199.0,0.001482]
[1731260561699,0.31298979,80203.0,80199.0,0.001482]
[1731260561897,0.10294221,80203.0,80199.0,0.001482]
[1731260562938,6.49467987,80204.0,80199.0,0.006482]
[1731260565317,6.49467987,80204.0,80202.0,0.03]
[1731260565755,0.31298979,80203.0,80202.0,0.03]
[1731260566114,6.49467987,80204.0,80202.0,0.03]
[1731260566259,6.49467987,80204.0,80203.0,0.18704758]
[1731260566490,6.49467987,80204.0,80202.0,0.03]
[1731260568466,6.49467987,80204.0,80203.0,0.41798979]
[1731260568668,4.99477987,80204.0,80203.0,0.28353543]
[1731260568938,1.82277987,80204.0,80203.0,0.28353543]
[1731260569159,1.82277987,80204.0,80203.0,0.26055509]
[1731260569522,1.82277987,80204.0,80203.0,0.28353543]
[1731260569932,1.82362087,80204.0,80203.0,0.28353543]
[1731260571194,0.000706,80216.0,80213.0,0.02]
[1731260571195,0.18775358,80216.0,80213.0,0.02]
[1731260571397,0.18775358,80216.0,80213.0,0.24594221]
[1731260571824,0.000706,80216.0,80213.0,0.24794221]
[1731260572231,0.000706,80216.0,80213.0,0.24594221]
[1731260572438,0.000706,80216.0,80213.0,0.24794221]
[1731260572650,0.000706,80216.0,80213.0,0.26557603]
[1731260573079,6.54569875,80214.0,80213.0,0.26557603]
[1731260573275,6.54569875,80214.0,80213.0,0.24794221]
[1731260573704,6.54569875,80214.0,80213.0,0.24594221]
[1731260573883,6.54569875,80214.0,80213.0,0.24294221]
[1731260574300,6.54569875,80214.0,80213.0,0.26557603]
[1731260574454,6.54569875,80214.0,80213.0,0.23794221]
[1731260575767,6.54569875,80214.0,80213.0,0.23594221]
[1731260575982,6.54569875,80214.0,80213.0,0.23794221]
[1731260576962,6.54569875,80214.0,80213.0,0.23094221]
[1731260577368,6.5332322,80214.0,80213.0,0.22594221]
[1731260577947,6.5332322,80214.0,80213.0,0.005]
[1731260578203,6.5332322,80214.0,80202.0,0.03]
[1731260578407,6.5332322,80214.0,80203.0,0.31798979]
[1731260578618,6.5332322,80214.0,80203.0,0.13094221]
[1731260578756,0.18704758,80211.0,80202.0,0.03]
[1731260578955,6.5332322,80214.0,80202.0,0.03]
[1731260579169,0.18704758,80213.0,80202.0,0.03]
[1731260579364,6.5332322,80214.0,80202.0,0.03]
[1731260580248,0.18704758,80213.0,80202.0,0.03]
[1731260580691,0.005,80210.0,80202.0,0.03]
[1731260581107,0.005,80208.0,80202.0,0.03]
[1731260583575,0.005,80203.0,80202.0,0.03]
[1731260583787,0.0454,80212.0,80202.0,0.03]
[1731260583984,0.005,80208.0,80202.0,0.03]
[1731260584498,0.0454,80212.0,80206.0,0.005]
[1731260585243,0.0454,80212.0,80202.0,0.03]
[1731260585514,0.0504,80212.0,80202.0,0.03]
[1731260585694,0.005,80210.0,80202.0,0.03]
[1731260586080,0.005,80206.0,80202.0,0.03]
[1731260586289,0.005,80206.0,80204.0,0.005]
[1731260586603,0.0454,80212.0,80190.0,0.005]
[1731260586604,0.005,80200.0,80190.0,0.005]
[1731260586784,0.005,80195.0,80179.0,0.16681176]
[1731260586967,0.005,80195.0,80180.0,0.005]
[1731260587196,0.005,80195.0,80182.0,0.005]
[1731260587835,0.005,80210.0,80196.0,0.005]
[1731260588064,0.0454,80212.0,80211.0,0.01]
[1731260588246,0.18788858,80213.0,80212.0,0.005]
[1731260588696,0.000841,80213.0,80212.0,0.005]
[1731260591177,6.5110732,80214.0,80212.0,0.005]
[1731260591326,6.5110732,80214.0,80213.0,0.005]
[1731260592330,6.5110732,80214.0,80213.0,0.01]
[1731260592634,6.5160732,80214.0,80213.0,0.01]
[1731260594381,6.5110732,80214.0,80213.0,0.13794221]
[1731260594547,6.5110732,80214.0,80213.0,0.13594221]
[1731260595180,6.5110732,80214.0,80213.0,0.01]
[1731260596768,6.5110732,80214.0,80202.0,0.001682]
[1731260596769,0.005,80203.0,80202.0,0.001682]
[1731260601796,0.005,80205.0,80204.0,0.01]
[1731260602338,0.005,80205.0,80202.0,0.001682]
[1731260602542,0.005,80203.0,80202.0,0.001682]
[1731260603185,0.005,80192.0,80183.0,0.18704758]
[1731260603417,0.005,80192.0,80186.0,0.005]
[1731260603624,0.005,80192.0,80183.0,0.18704758]
[1731260603966,0.005,80192.0,80182.0,0.005]
[1731260604298,0.16904758,80201.0,80182.0,0.005]
[1731260604528,0.16904758,80201.0,80180.0,0.005]
[1731260604529,0.12594221,80200.0,80180.0,0.005]
[1731260605283,0.12594221,80200.0,80181.0,0.005]
[1731260605502,0.0756,80202.0,80184.0,0.005]
[1731260605669,0.12594221,80201.0,80186.0,0.005]
[1731260606127,0.18704758,80200.0,80185.0,0.005]
[1731260606318,0.12594221,80200.0,80185.0,0.005]
[1731260606551,0.31298979,80199.0,80191.0,0.01184583]
[1731260606753,0.12594221,80199.0,80191.0,0.01184583]
[1731260607196,0.19204758,80198.0,80191.0,0.01184583]
[1731260607317,0.005,80196.0,80191.0,0.01184583]
[1731260607518,0.12594221,80195.0,80191.0,0.01184583]
[1731260608037,0.005,80194.0,80191.0,0.01184583]
[1731260608257,0.12594221,80193.0,80191.0,0.01184583]
[1731260608657,0.005,80192.0,80191.0,0.01184583]
[1731260608973,0.13094221,80192.0,80191.0,0.01184583]
[1731260609178,0.005,80186.0,80167.0,0.001682]
[1731260609412,0.08094221,80185.0,80167.0,0.001682]
[1731260609845,0.08094221,80185.0,80169.0,0.18704758]
[1731260610310,0.18704758,80182.0,80167.0,0.001682]
[1731260610514,0.1293,80180.0,80167.0,0.001682]
[1731260610750,0.12594221,80179.0,80167.0,0.001682]
[1731260611670,0.12594221,80179.0,80162.0,0.098364]
[1731260612475,0.18704758,80173.0,80162.0,0.098364]
[1731260612618,0.17294221,80172.0,80162.0,0.098364]
[1731260613176,0.0823,80170.0,80162.0,0.098364]
[1731260613376,0.12594221,80169.0,80162.0,0.098364]
[1731260615433,0.0823,80170.0,80162.0,0.098364]
[1731260615709,0.20824221,80170.0,80162.0,0.098364]
[1731260616288,0.18704758,80168.0,80162.0,0.098364]
[1731260616500,0.12594221,80167.0,80162.0,0.098364]
[1731260618326,0.10294221,80167.0,80162.0,0.098364]
[1731260619226,0.06037594,80167.0,80162.0,0.098364]
[1731260619792,0.18704758,80166.0,80162.0,0.098364]
[1731260620163,0.0823,80170.0,80162.0,0.098364]
[1731260620164,0.12594221,80165.0,80162.0,0.098364]
[1731260620351,0.12594221,80164.0,80162.0,0.098364]
[1731260620682,0.17194221,80163.0,80141.0,0.18704758]
[1731260620869,0.17194221,80163.0,80150.0,0.18704758]
[1731260621046,0.18704758,80162.0,80141.0,0.18704758]
[1731260621246,0.12594221,80161.0,80141.0,0.18704758]
[1731260621447,0.12594221,80161.0,80132.0,0.005]
[1731260621831,0.12594221,80161.0,80133.0,0.005]
[1731260622070,0.18704758,80152.0,80134.0,0.18704758]
[1731260622262,0.12594221,80151.0,80136.0,0.16192708]
[1731260622428,0.12594221,80151.0,80134.0,0.18704758]
[1731260622429,0.12594221,80151.0,80137.0,0.16192708]
[1731260622635,0.18704758,80150.0,80137.0,0.005]
[1731260622861,0.18704758,80162.0,80141.0,0.005]
[1731260623056,0.18704758,80153.0,80141.0,0.005]
[1731260623875,0.12594221,80161.0,80141.0,0.005]
[1731260624079,0.18704758,80160.0,80156.0,0.11461349]
[1731260624550,0.18704758,80160.0,80149.0,0.11461349]
[1731260624751,0.0823,80170.0,80156.0,0.11461349]
[1731260624963,0.000841,80179.0,80159.0,0.01]
[1731260625168,0.000841,80179.0,80166.0,0.005]
[1731260625314,0.18704758,80172.0,80166.0,0.005]
[1731260625518,0.000841,80179.0,80166.0,0.005]
[1731260626156,0.000841,80179.0,80168.0,0.005]
[1731260626356,0.000841,80179.0,80174.0,0.03]
[1731260630196,0.000841,80179.0,80178.0,0.01]
[1731260630313,0.000841,80179.0,80178.0,0.015]
[1731260631129,0.000841,80179.0,80178.0,0.24094221]
[1731260631329,0.000841,80179.0,80178.0,0.26055509]
[1731260631954,0.000841,80179.0,80178.0,0.24794221]
[1731260632800,0.000841,80179.0,80178.0,0.24594221]
[1731260633449,0.000841,80179.0,80178.0,0.24794221]
[1731260634416,0.16488858,80195.0,80194.0,0.005]
[1731260634634,0.16488858,80195.0,80194.0,0.01]
[1731260635052,0.1235,80209.0,80194.0,0.01]
[1731260635264,0.1235,80209.0,80197.0,0.1616534]
[1731260635473,0.1235,80209.0,80196.0,0.1666534]
[1731260636133,0.1235,80209.0,80197.0,0.1616534]
[1731260636340,0.1235,80209.0,80196.0,0.1666534]
[1731260636556,0.1235,80209.0,80196.0,0.1616534]
[1731260636760,0.1235,80209.0,80196.0,0.1666534]
[1731260637169,0.1235,80209.0,80195.0,0.1616534]
[1731260637389,0.1235,80209.0,80191.0,0.1616534]
[1731260637390,0.12935252,80202.0,80191.0,0.1616534]
[1731260637615,0.12935252,80202.0,80192.0,0.18704758]
[1731260637817,0.12935252,80202.0,80189.0,0.1616534]
[1731260638023,0.00341031,80202.0,80190.0,0.005]
[1731260638416,0.00341031,80202.0,80193.0,0.005]
[1731260638629,0.00341031,80202.0,80194.0,0.1616534]
[1731260638807,0.00341031,80202.0,80193.0,0.1616534]
[1731260639017,0.00341031,80202.0,80194.0,0.16186197]
[1731260639244,0.1235,80209.0,80194.0,0.16186197]
[1731260639535,0.24944221,80209.0,80194.0,0.16186197]
[1731260640051,0.18704758,80204.0,80194.0,0.16186197]
[1731260640272,0.12594221,80208.0,80192.0,0.16186197]
[1731260640465,0.12594221,80208.0,80176.0,0.002]
[1731260640466,0.18704758,80204.0,80193.0,0.16186197]
[1731260640686,0.12594221,80203.0,80191.0,0.16186197]
[1731260641032,0.18704758,80202.0,80191.0,0.16186197]
[1731260641243,0.12594221,80201.0,80190.0,0.16186197]
[1731260642422,0.12594221,80201.0,80192.0,0.1621997]
[1731260642624,0.1235,80209.0,80193.0,0.18704758]
[1731260642942,0.000841,80202.0,80196.0,0.1621997]
[1731260643325,0.12678321,80202.0,80196.0,0.1621997]
[1731260643527,0.12678321,80202.0,80195.0,0.1621997]
[1731260644390,0.12678321,80202.0,80194.0,0.1621997]
[1731260644565,0.12678321,80202.0,80197.0,0.1621997]
[1731260644770,0.18704758,80201.0,80197.0,0.1621997]
[1731260644980,0.12678321,80202.0,80195.0,0.1621997]
[1731260645190,0.12594221,80201.0,80195.0,0.1621997]
[1731260645462,0.12594221,80201.0,80194.0,0.1621997]
[1731260645874,0.12594221,80201.0,80187.0,0.005]
[1731260645875,0.12594221,80201.0,80195.0,0.1621997]
[1731260646328,0.12594221,80201.0,80194.0,0.1621997]
[1731260646563,0.12594221,80201.0,80195.0,0.1621997]
[1731260646688,0.000841,80202.0,80195.0,0.1621997]
[1731260646893,0.12678321,80202.0,80195.0,0.1621997]
[1731260647102,0.000841,80202.0,80196.0,0.1621997]
[1731260647532,0.000841,80202.0,80197.0,0.1621997]
[1731260647732,0.000841,80202.0,80198.0,0.1621997]
[1731260648151,0.000841,80202.0,80196.0,0.1621997]
[1731260648359,0.12594221,80201.0,80195.0,0.1621997]
[1731260648638,0.12594221,80201.0,80189.0,0.005]